bitfinex/quotes_BTCUSD_20260215
["timestamp","ask_amount","ask_price","bid_price","bid_amount"]
[1771197903960,0.0004,68572.0,68557.0,0.2804]
[1771197903961,0.0004,68572.0,68559.0,0.19525991]
[1771197904201,0.0004,68579.0,68557.0,0.2804]
[1771197904202,0.00036,68579.0,68569.0,0.19525991]
[1771197904384,0.00036,68579.0,68570.0,0.30449054]
[1771197905209,0.00036,68579.0,68570.0,0.2808]
[1771197905416,0.02463619,68578.0,68569.0,0.2808]
[1771197905826,0.00036,68579.0,68569.0,0.2808]
[1771197907244,0.00036,68579.0,68569.0,0.85537331]
[1771197907467,0.00036,68579.0,68571.0,0.02377054]
[1771197907674,0.00036,68579.0,68572.0,0.02377054]
[1771197909037,0.00354579,68582.0,68575.0,0.02377054]
[1771197909346,0.02992087,68594.0,68577.0,0.19525991]
[1771197909347,0.00528468,68594.0,68577.0,0.19525991]
[1771197909555,0.00528468,68594.0,68580.0,0.02377054]
[1771197910003,0.00528468,68594.0,68580.0,0.0966773]
[1771197910245,0.0004,68586.0,68580.0,0.02377054]
[1771197910474,0.0004,68586.0,68581.0,0.07290613]
[1771197910698,0.0004,68586.0,68582.0,0.02377054]
[1771197910877,0.0004,68586.0,68583.0,0.28208]
[1771197911085,0.0004,68586.0,68576.0,0.19525991]
[1771197911086,0.19080017,68585.0,68569.0,0.02377054]
[1771197911285,0.02463619,68584.0,68570.0,0.2822]
[1771197911862,0.02463619,68584.0,68575.0,0.07291258]
[1771197912061,0.02463619,68584.0,68570.0,0.85677331]
[1771197912062,0.00486557,68592.0,68573.0,0.29165572]
[1771197912264,0.00486557,68592.0,68583.0,0.26816422]
[1771197912587,0.00486557,68592.0,68584.0,0.30605054]
[1771197913520,0.00486557,68592.0,68584.0,0.28228]
[1771197915230,0.00560952,68598.0,68585.0,0.02459132]
[1771197915431,0.00643845,68601.0,68588.0,0.57457331]
[1771197915592,0.00643845,68601.0,68589.0,0.02459132]
[1771197916693,0.0004,68592.0,68589.0,0.02459132]
[1771197916958,0.0004,68599.0,68589.0,0.02459132]
[1771197917714,0.0004,68599.0,68590.0,0.02459132]
[1771197917916,0.0004,68599.0,68591.0,0.28332]
[1771197918672,0.0004,68599.0,68591.0,0.30791132]
[1771197919294,0.00643845,68601.0,68593.0,0.02459132]
[1771197919476,0.00656701,68601.0,68591.0,0.28332]
[1771197920470,0.03053857,68601.0,68591.0,0.2842]
[1771197920678,0.02397156,68600.0,68591.0,0.2842]
[1771197922064,0.00656701,68601.0,68580.0,0.57457331]
[1771197922065,0.18566899,68599.0,68580.0,0.57457331]
[1771197922268,0.00656701,68601.0,68585.0,0.28428]
[1771197922269,0.02397156,68597.0,68585.0,0.28428]
[1771197922710,0.02397156,68597.0,68585.0,0.35718143]
[1771197923127,0.00656701,68601.0,68586.0,0.02459132]
[1771197923331,0.00656701,68601.0,68591.0,0.07289508]
[1771197923540,0.00656701,68601.0,68592.0,0.02459132]
[1771197923893,0.0004,68600.0,68592.0,0.02459132]
[1771197924343,0.0004,68600.0,68593.0,0.02459132]
[1771197926688,0.18566899,68598.0,68592.0,0.08497895]
[1771197926891,0.02397156,68597.0,68583.0,0.28504]
[1771197928075,0.02397156,68597.0,68583.0,0.30963132]
[1771197928251,0.02397156,68597.0,68583.0,0.38253551]
[1771197928705,0.02397156,68597.0,68583.0,0.30963132]
[1771197928907,0.02397156,68597.0,68584.0,0.0729033]
[1771197929206,0.02397156,68597.0,68583.0,0.38253535]
[1771197929777,0.02397156,68597.0,68585.0,0.07290223]
[1771197929980,0.0004,68600.0,68588.0,0.02459132]
[1771197930184,0.0004,68600.0,68590.0,0.02459132]
[1771197930412,0.0004,68600.0,68592.0,0.09748608]
[1771197930810,0.0004,68600.0,68592.0,0.02459132]
[1771197932004,0.00656701,68601.0,68600.0,0.2496]
[1771197934259,0.00228943,68601.0,68600.0,0.2496]
[1771197934592,0.00631328,68603.0,68600.0,0.2496]
[1771197936623,0.02397156,68608.0,68600.0,0.2496]
[1771197937216,0.00678657,68609.0,68600.0,0.2496]
[1771197939955,0.00678657,68609.0,68601.0,0.02459132]
[1771197940380,0.00692298,68607.0,68601.0,0.02459132]
[1771197940586,0.00883167,68613.0,68601.0,0.02459132]
[1771197940789,0.00883167,68613.0,68603.0,0.02459132]
[1771197942498,0.0004,68607.0,68603.0,0.02459132]
[1771197942724,0.21732141,68612.0,68600.0,0.2496]
[1771197943678,0.21732141,68612.0,68600.0,0.82417331]
[1771197943879,0.21732141,68612.0,68600.0,0.2496]
[1771197944685,0.03165242,68612.0,68600.0,0.82417331]
[1771197945255,0.00768086,68612.0,68601.0,0.02352478]
[1771197947154,0.00768086,68612.0,68611.0,0.2496]
[1771197947877,0.19910779,68612.0,68611.0,0.20296297]
[1771197948079,0.22204725,68612.0,68611.0,0.20296297]
[1771197948286,0.22204725,68612.0,68600.0,0.51032733]
[1771197948287,0.02293946,68611.0,68600.0,0.51032733]
[1771197948464,0.02293946,68609.0,68600.0,0.51032733]
[1771197948979,0.00768086,68612.0,68600.0,0.51032733]
[1771197948980,0.19142693,68611.0,68600.0,0.51032733]
[1771197949201,0.02293946,68610.0,68600.0,0.51032733]
[1771197949966,0.02293946,68610.0,68596.0,0.02352478]
[1771197950470,0.02293946,68610.0,68600.0,0.57423466]
[1771197951106,0.02293946,68610.0,68600.0,0.57443466]
[1771197952885,0.02293946,68610.0,68600.0,0.0002]
[1771197954705,0.00768086,68612.0,68601.0,0.19765663]
[1771197954867,0.00768086,68612.0,68600.0,0.57441312]
[1771197954868,0.00768086,68612.0,68603.0,0.19765663]
[1771197955072,0.00768086,68612.0,68604.0,0.02352478]
[1771197957746,0.00768086,68612.0,68604.0,0.0964066]
[1771197958063,0.00768086,68612.0,68604.0,0.02352478]
[1771197958468,0.00800146,68615.0,68604.0,0.02352478]
[1771197958669,0.00800146,68615.0,68606.0,0.02352478]
[1771197959336,0.0004,68612.0,68606.0,0.02352478]
[1771197959543,0.00800146,68615.0,68606.0,0.02352478]
[1771197959959,0.00800146,68615.0,68602.0,0.29184]
[1771197960153,0.03094092,68615.0,68602.0,0.29184]
[1771197960571,0.03094092,68615.0,68602.0,0.36472399]
[1771197960738,0.00800146,68615.0,68603.0,0.09640727]
[1771197960961,0.00800146,68615.0,68606.0,0.02352478]
[1771197961168,0.02102026,68619.0,68606.0,0.02352478]
[1771197961169,0.02102026,68619.0,68610.0,0.02352478]
[1771197962504,0.00851451,68618.0,68610.0,0.02352478]
[1771197963468,0.00851451,68618.0,68603.0,0.29153154]
[1771197963469,0.0001944,68637.0,68594.0,0.04706462]
[1771197963673,0.0001944,68637.0,68620.0,0.5977379]
[1771197963674,0.00042845,68630.0,68620.0,0.5977379]
[1771197963876,0.00042845,68630.0,68621.0,0.02352478]
[1771197964085,0.0001944,68637.0,68620.0,0.57421312]
[1771197964086,0.0001944,68637.0,68625.0,0.19765663]
[1771197964293,0.01240886,68636.0,68627.0,0.02352478]
[1771197965304,0.19162133,68648.0,68627.0,0.02352478]
[1771197965305,0.0001944,68648.0,68627.0,0.29288]
[1771197965555,0.21436639,68643.0,68627.0,0.29300851]
[1771197965752,0.19142693,68643.0,68627.0,0.29300851]
[1771197965953,0.03324026,68640.0,68627.0,0.29300851]
[1771197966157,0.0103008,68640.0,68627.0,0.29300851]
[1771197966505,0.0103008,68640.0,68631.0,0.0728528]
[1771197966707,0.0001944,68648.0,68636.0,0.02352478]
[1771197967120,0.0001944,68648.0,68631.0,0.02352478]
[1771197967539,0.0001944,68648.0,68636.0,0.02352478]
[1771197967957,0.01118509,68645.0,68636.0,0.02352478]
[1771197969177,0.19142693,68643.0,68627.0,0.00012851]
[1771197969389,0.02293946,68640.0,68627.0,0.29368851]
[1771197970219,0.02293946,68639.0,68627.0,0.29368851]
[1771197971482,0.19142693,68639.0,68627.0,0.29368851]
[1771197971688,0.02293946,68638.0,68627.0,0.29368851]
[1771197974166,0.02287769,68636.0,68627.0,0.29368851]
[1771197975392,0.02287769,68643.0,68627.0,0.29368851]
[1771197975807,0.02287769,68643.0,68627.0,0.3163704]
[1771197976583,0.02287769,68643.0,68630.0,0.57421312]
[1771197977734,0.02287769,68643.0,68630.0,0.59689501]
[1771197978084,0.01118509,68645.0,68630.0,0.59689501]
[1771197978085,0.01118509,68645.0,68633.0,0.02268189]
[1771197978299,0.18205596,68643.0,68630.0,0.57421312]
[1771197978498,0.02287769,68642.0,68630.0,0.57421312]
[1771197978894,0.01118509,68645.0,68632.0,0.02268189]
[1771197979101,0.01118509,68645.0,68636.0,0.02268189]
[1771197979445,0.01118509,68645.0,68637.0,0.02268189]
[1771197980411,0.01118509,68645.0,68638.0,0.02268189]
[1771197981026,0.01118509,68645.0,68639.0,0.18168508]
[1771197981228,0.0001944,68648.0,68640.0,0.02268189]
[1771197981993,0.0001944,68648.0,68641.0,0.02268189]
[1771197982369,0.0001944,68648.0,68641.0,0.31820189]
[1771197983976,0.20493365,68647.0,68628.0,0.02268189]
[1771197984192,0.20493365,68647.0,68632.0,0.31860189]
[1771197984193,0.02287769,68647.0,68632.0,0.31860189]
[1771197984425,0.02287769,68647.0,68633.0,0.02268189]
[1771197984636,0.02287769,68647.0,68636.0,0.0002]
[1771197985971,0.02287769,68645.0,68636.0,0.0002]
[1771197989378,0.0005944,68648.0,68636.0,0.0002]
[1771197989831,0.02347209,68648.0,68636.0,0.0002]
[1771197990007,0.20552805,68648.0,68636.0,0.0002]
[1771197990250,0.02287769,68647.0,68636.0,0.0002]
[1771197990450,0.0005944,68648.0,68637.0,0.57421312]
[1771197990637,0.0005944,68648.0,68638.0,0.02268189]
[1771197991965,0.0005944,68648.0,68638.0,0.53250631]
[1771197994596,0.0005944,68648.0,68638.0,1.04233073]
[1771197994801,0.0122744,68649.0,68638.0,0.53250631]
[1771197995587,0.0122744,68649.0,68639.0,0.02268189]
[1771197997362,0.18205596,68648.0,68632.0,0.29592]
[1771197997562,0.0122744,68649.0,68621.0,0.79535343]
[1771197997563,0.02287769,68640.0,68621.0,0.79535343]
[1771197997764,0.50982442,68642.0,68620.0,0.51002442]
[1771197997765,0.02287769,68637.0,68620.0,0.51002442]
[1771197997966,0.02287769,68636.0,68620.0,0.51002442]
[1771197998366,0.02287769,68636.0,68626.0,0.50982442]
[1771197998626,0.32356,68638.0,68614.0,0.18168508]
[1771197998858,0.02287769,68636.0,68620.0,0.50982442]
[1771197999690,0.02287769,68636.0,68632.0,0.0002]
[1771198000292,0.02287769,68636.0,68632.0,5.556e-05]
[1771198005065,0.14411539,68648.0,68632.0,5.556e-05]
[1771198005276,0.09332,68638.0,68632.0,5.556e-05]
[1771198005654,0.11804582,68638.0,68632.0,5.556e-05]
[1771198009897,0.02472582,68637.0,68632.0,5.556e-05]
[1771198010116,0.02472582,68635.0,68632.0,5.556e-05]
[1771198020859,0.0126744,68649.0,68632.0,5.556e-05]
[1771198021110,0.02472582,68646.0,68633.0,0.17289203]
[1771198021324,0.14376,68648.0,68634.0,0.02304499]
[1771198021562,0.14376,68648.0,68637.0,0.18963858]
[1771198021771,0.0526367,68648.0,68641.0,0.02304499]
[1771198021981,0.0526367,68648.0,68643.0,0.18963858]
[1771198022192,0.0526367,68648.0,68632.0,5.556e-05]
[1771198022193,0.0526367,68648.0,68633.0,0.18963858]
[1771198022400,0.0526367,68648.0,68632.0,5.556e-05]
[1771198022401,0.0526367,68648.0,68635.0,0.02304499]
[1771198022605,0.0526367,68648.0,68636.0,0.02304499]
[1771198022809,0.09332,68651.0,68642.0,0.18963858]
[1771198023027,0.0002684,68654.0,68641.0,0.02304499]
[1771198023237,0.0002684,68654.0,68644.0,0.18963858]
[1771198023411,0.0002684,68654.0,68647.0,0.02304499]
[1771198024561,0.0006684,68654.0,68647.0,0.02304499]
[1771198025988,0.0006684,68654.0,68647.0,0.02290053]
[1771198030244,0.0006684,68654.0,68650.0,0.18963858]
[1771198030457,0.0006684,68654.0,68651.0,0.02304499]
[1771198031099,0.0006684,68654.0,68652.0,0.02304499]
[1771198032530,0.3000122,68656.0,68652.0,0.02304499]
[1771198033143,0.3232338,68667.0,68646.0,0.50976222]
[1771198033144,0.0113677,68666.0,68653.0,0.02304499]
[1771198033351,0.01149613,68666.0,68657.0,0.02304499]
[1771198033554,0.0004,68661.0,68657.0,0.02304499]
[1771198033762,0.01149613,68666.0,68658.0,0.02335823]
[1771198034795,0.0002338,68667.0,68659.0,0.20156885]
[1771198035035,0.0004,68668.0,68659.0,0.00012843]
[1771198035232,0.0004,68668.0,68660.0,0.02335823]
[1771198036542,0.0004,68668.0,68659.0,0.00012843]
[1771198036940,0.19082345,68665.0,68651.0,0.2982]
[1771198037137,0.21468528,68665.0,68651.0,0.2982]
[1771198037378,0.21468528,68665.0,68648.0,0.02335823]
[1771198037379,0.19095181,68665.0,68648.0,0.02335823]
[1771198037584,0.19082345,68658.0,68642.0,0.14284]
[1771198037786,0.19082345,68658.0,68643.0,0.02335823]
[1771198039747,0.02373347,68660.0,68643.0,0.02335823]
[1771198040289,0.21455692,68660.0,68643.0,0.02335823]
[1771198040512,0.21455692,68660.0,68643.0,0.02355823]
[1771198040792,0.0004,68658.0,68643.0,0.02355823]
[1771198041638,0.02413347,68658.0,68643.0,0.02355823]
[1771198043381,0.0004,68658.0,68648.0,0.53312045]
[1771198043812,0.0004,68658.0,68649.0,0.02335823]
[1771198044676,0.00012836,68665.0,68649.0,0.02335823]
[1771198044878,0.00012836,68665.0,68643.0,0.0002]
[1771198044879,0.01096962,68670.0,68657.0,0.20156885]
[1771198045081,0.01096962,68670.0,68661.0,0.02335823]
[1771198047507,0.19082345,68669.0,68657.0,0.00012836]
[1771198047708,0.02373347,68666.0,68657.0,0.00012836]
[1771198048343,0.19082345,68667.0,68657.0,0.00012836]
[1771198049891,0.19082345,68667.0,68650.0,0.80872222]
[1771198050116,0.21455692,68665.0,68650.0,0.80872222]
[1771198050534,0.21455692,68665.0,68650.0,0.83208045]
[1771198050758,0.21455692,68665.0,68651.0,0.02335823]
[1771198052048,0.02373347,68665.0,68651.0,0.02335823]
[1771198052219,0.00011225,68667.0,68655.0,0.50976222]
[1771198052419,0.00011225,68667.0,68657.0,0.50976222]
[1771198052870,0.00011225,68667.0,68654.0,0.02335823]
[1771198056069,0.05611915,68667.0,68654.0,0.02335823]
[1771198057021,0.05611915,68667.0,68657.0,0.50976222]
[1771198057222,0.05611915,68667.0,68658.0,0.02335823]
[1771198059916,0.05651915,68667.0,68658.0,0.02335823]
[1771198063417,0.05651915,68667.0,68650.0,0.29896]
[1771198063418,0.19247076,68664.0,68650.0,0.80872222]
[1771198063724,0.05651915,68667.0,68650.0,0.80872222]
[1771198064000,0.05651915,68667.0,68651.0,0.02376865]
[1771198068534,0.05651915,68667.0,68651.0,0.02396865]
[1771198069318,0.05651915,68667.0,68657.0,0.50976222]
[1771198069662,0.05651915,68667.0,68657.0,0.53398178]
[1771198071656,0.05971915,68667.0,68657.0,0.02421956]
[1771198076002,0.05971915,68667.0,68659.0,0.02421956]
[1771198076171,0.05971915,68667.0,68659.0,0.19661443]
[1771198076520,0.05971915,68667.0,68660.0,0.02421956]
[1771198079020,0.00971915,68667.0,68660.0,0.02421956]
[1771198082721,0.52059014,68670.0,68662.0,0.02421956]
[1771198082722,0.01096962,68670.0,68662.0,0.02421956]
[1771198082935,0.0001442,68672.0,68665.0,0.02421956]
[1771198083127,0.0001442,68672.0,68665.0,0.02433181]
[1771198086815,0.0005442,68672.0,68665.0,0.02433181]
[1771198087642,0.0005442,68672.0,68666.0,0.02421956]
[1771198088691,0.01138158,68679.0,68667.0,0.02421956]
[1771198088927,0.01138158,68679.0,68669.0,0.50962052]
[1771198089132,0.01138158,68679.0,68668.0,0.19661443]
[1771198089133,0.01138158,68679.0,68670.0,0.02421956]
[1771198089347,0.01138158,68679.0,68666.0,0.30432]
[1771198089348,0.19966729,68678.0,68666.0,0.30432]
[1771198089552,0.01138158,68679.0,68666.0,0.30432]
[1771198089553,0.22370726,68677.0,68666.0,0.30432]
[1771198090219,0.01138158,68679.0,68667.0,0.50962052]
[1771198090408,0.01138158,68679.0,68669.0,0.50962052]
[1771198091129,0.16832105,68679.0,68670.0,0.02421956]
[1771198096297,0.16872105,68679.0,68670.0,0.02421956]
[1771198098287,0.011042,68683.0,68670.0,0.18863041]
[1771198098496,0.011042,68683.0,68671.0,0.18863041]
[1771198098720,0.011042,68683.0,68672.0,0.02414661]
[1771198098928,0.011042,68683.0,68672.0,0.18863041]
[1771198099146,0.011042,68683.0,68673.0,0.02414661]
[1771198099775,0.011042,68683.0,68675.0,0.02414661]
[1771198099978,0.011042,68683.0,68676.0,0.02414661]
[1771198100366,0.01120412,68688.0,68675.0,0.49435041]
[1771198100367,0.01120412,68688.0,68677.0,0.18863041]
[1771198100592,0.01120412,68688.0,68675.0,0.30572]
[1771198100593,0.01120412,68688.0,68679.0,0.02414661]
[1771198103128,0.01120412,68688.0,68680.0,0.02414661]
[1771198103474,0.0111489,68692.0,68679.0,0.02414661]
[1771198103656,0.0111489,68692.0,68680.0,0.50962052]
[1771198103957,0.0111489,68692.0,68681.0,0.02414661]
[1771198104131,0.0111489,68692.0,68683.0,0.02414661]
[1771198104338,0.0004,68688.0,68683.0,0.02414661]
[1771198104669,0.0111489,68692.0,68683.0,0.02414661]
[1771198106677,0.02462256,68690.0,68682.0,0.30644]
[1771198106921,0.53424308,68690.0,68677.0,0.30696]
[1771198107376,0.50962052,68690.0,68678.0,0.02414661]
[1771198108132,0.02462256,68689.0,68677.0,0.30696]
[1771198108336,0.02462256,68688.0,68677.0,0.30696]
[1771198108566,0.50962052,68690.0,68677.0,0.30696]
[1771198108781,0.50962052,68690.0,68678.0,0.02414661]
[1771198109179,0.3327089,68692.0,68678.0,0.02414661]
[1771198109434,0.50962052,68690.0,68678.0,0.02414661]
[1771198110151,0.0111489,68692.0,68678.0,0.02414661]
[1771198110360,0.0111489,68692.0,68680.0,0.50962052]
[1771198110578,0.0111489,68692.0,68682.0,0.02414661]
[1771198111801,0.0111489,68692.0,68677.0,0.49559041]
[1771198111802,0.02462256,68690.0,68677.0,0.30696]
[1771198112009,0.02462256,68689.0,68677.0,0.30696]
[1771198112985,0.0115489,68692.0,68677.0,0.30696]
[1771198112986,0.0115489,68692.0,68678.0,0.02414661]
[1771198113868,0.0115489,68692.0,68680.0,0.50962052]
[1771198114551,0.0115489,68692.0,68681.0,0.02414661]
[1771198116154,0.0115489,68692.0,68677.0,0.30696]
[1771198116155,0.02462256,68691.0,68677.0,0.30696]
[1771198116485,0.02462256,68691.0,68677.0,0.33110661]
[1771198116694,0.02462256,68689.0,68677.0,0.30696]
[1771198118224,0.50962052,68690.0,68677.0,0.30696]
[1771198118394,0.0115489,68692.0,68677.0,0.30696]
[1771198118675,0.0115489,68692.0,68678.0,0.02414661]
[1771198119467,0.0115489,68692.0,68680.0,0.53376713]
[1771198121784,0.16460354,68713.0,68694.0,0.02414661]
[1771198121785,0.01100354,68713.0,68694.0,0.02414661]
[1771198122013,0.01100354,68713.0,68695.0,0.30828]
[1771198122014,0.22209643,68708.0,68695.0,0.30828]
[1771198122433,0.0004,68696.0,68695.0,0.30828]
[1771198122670,0.0004,68696.0,68695.0,0.33242661]
[1771198122906,0.0004,68696.0,68695.0,0.33250661]
[1771198123134,0.00052844,68696.0,68695.0,0.33250661]
[1771198123744,0.50962052,68710.0,68696.0,0.02378929]
[1771198123926,0.01203365,68705.0,68696.0,0.02378929]
[1771198124175,0.01203365,68705.0,68691.0,0.02378929]
[1771198124390,0.01203365,68705.0,68693.0,0.30868]
[1771198124589,0.01203365,68705.0,68693.0,0.33246929]
[1771198125156,0.01203365,68705.0,68694.0,0.02251246]
[1771198125794,0.01203365,68705.0,68693.0,0.30868]
[1771198125998,0.19012214,68700.0,68688.0,0.30888]
[1771198126213,0.72423568,68700.0,68688.0,0.30888]
[1771198126422,0.21461516,68700.0,68688.0,0.30888]
[1771198126593,0.72423568,68700.0,68688.0,0.30888]
[1771198126799,0.22664881,68699.0,68688.0,0.30888]
[1771198127119,0.22664881,68699.0,68689.0,0.50962052]
[1771198127120,0.03652667,68699.0,68689.0,0.50962052]
[1771198127441,0.21461516,68704.0,68689.0,0.50962052]
[1771198127769,0.21461516,68704.0,68689.0,0.53213298]
[1771198128303,0.21461516,68704.0,68690.0,0.02251246]
[1771198130551,0.21501516,68704.0,68690.0,0.02251246]
[1771198131753,0.0004,68704.0,68690.0,0.02251246]
[1771198132611,0.01203365,68703.0,68690.0,0.02251246]
[1771198133140,0.0004,68704.0,68690.0,0.02251246]
[1771198133357,0.0004,68704.0,68694.0,0.02251246]
[1771198137993,0.01203365,68703.0,68694.0,0.02251246]
[1771198138618,0.01203365,68703.0,68695.0,0.02251246]
[1771198138822,0.01203365,68703.0,68697.0,0.02251246]
[1771198139432,0.0004,68704.0,68697.0,0.02251246]
[1771198139663,0.33362188,68709.0,68697.0,0.02251246]
[1771198139664,0.01066188,68709.0,68697.0,0.02251246]
[1771198139871,0.01066188,68709.0,68698.0,0.02251246]
[1771198140049,0.01066188,68709.0,68700.0,0.02251246]
[1771198141016,0.01066188,68709.0,68697.0,0.00042795]
[1771198142199,0.01066188,68709.0,68700.0,0.02251246]
[1771198142757,0.01066188,68709.0,68700.0,0.1913107]
[1771198142927,0.01066188,68709.0,68701.0,0.02251246]
[1771198147343,0.01106188,68709.0,68701.0,0.02251246]
[1771198147744,0.01106188,68709.0,68697.0,0.00042795]
[1771198148018,0.02449302,68705.0,68697.0,0.00042795]
[1771198148218,0.21461516,68704.0,68696.0,0.312]
[1771198148448,0.21504311,68704.0,68696.0,0.312]
[1771198149673,0.21504311,68704.0,68685.0,0.09324]
[1771198149674,0.02449302,68698.0,68685.0,0.09324]
[1771198149873,0.21461516,68696.0,68685.0,0.09324]
[1771198154115,0.20783798,68694.0,68685.0,0.09324]
[1771198154315,0.02313312,68693.0,68685.0,0.09324]
[1771198154511,0.2309711,68693.0,68685.0,0.09324]
[1771198155317,0.2309711,68693.0,68680.0,0.0002]
[1771198155523,0.2309711,68692.0,68680.0,0.0002]
[1771198156129,0.2309711,68692.0,68685.0,0.0002]
[1771198157070,0.83177759,68700.0,68680.0,0.50917759]
[1771198157071,0.2309711,68691.0,68680.0,0.50917759]
[1771198157299,0.2309711,68696.0,68680.0,0.50917759]
[1771198157515,0.20783798,68696.0,68680.0,0.50917759]
[1771198157726,0.2309711,68695.0,68680.0,0.50917759]
[1771198157927,0.2309711,68694.0,68680.0,0.50917759]
[1771198159980,0.83177759,68700.0,68680.0,0.50917759]
[1771198159981,0.02313312,68698.0,68680.0,0.50917759]
[1771198160182,0.20783798,68695.0,68680.0,0.50917759]
[1771198160383,0.2309711,68695.0,68680.0,0.50917759]
[1771198162132,0.83177759,68700.0,68680.0,0.50917759]
[1771198162133,0.2309711,68694.0,68680.0,0.50917759]
[1771198162779,0.02313312,68692.0,68680.0,0.0002]
[1771198163057,0.20783798,68694.0,68680.0,0.53189333]
[1771198163866,0.02313312,68697.0,68682.0,0.02271574]
[1771198164089,0.2309711,68697.0,68682.0,0.02271574]
[1771198164307,0.02313312,68696.0,68682.0,0.02271574]
[1771198164485,0.20783798,68695.0,68682.0,0.02271574]
[1771198166718,0.2309711,68695.0,68682.0,0.02271574]
[1771198172391,0.02313312,68695.0,68682.0,0.02271574]
[1771198173043,0.3228,68700.0,68683.0,0.02271574]
[1771198173214,0.3228,68700.0,68685.0,0.02271574]
[1771198173417,0.83177759,68700.0,68685.0,0.02271574]
[1771198173812,1.06274869,68700.0,68685.0,0.02271574]
[1771198174013,0.0004,68695.0,68685.0,0.02271574]
[1771198176068,0.0004,68695.0,68681.0,0.0003761]
[1771198176282,0.0004,68695.0,68686.0,0.02271574]
[1771198177067,0.0004,68702.0,68691.0,0.02271574]
[1771198177266,0.0004,68702.0,68689.0,0.50897759]
[1771198177267,0.0004,68702.0,68693.0,0.19903351]
[1771198177418,0.0004,68702.0,68694.0,0.19903351]
[1771198177599,0.0004,68702.0,68695.0,0.02271574]
[1771198178425,0.0004,68702.0,68695.0,0.02286314]
[1771198178627,0.0004,68702.0,68689.0,0.000137]
[1771198178628,0.02313312,68701.0,68689.0,0.000137]
[1771198178834,0.2309711,68701.0,68689.0,0.000137]
[1771198181889,0.50897759,68700.0,68689.0,0.000137]
[1771198183834,0.50897759,68700.0,68682.0,0.312697]
[1771198183835,0.20424248,68695.0,68682.0,0.33580274]
[1771198185085,0.83397759,68700.0,68683.0,0.21353974]
[1771198185345,0.83397759,68700.0,68684.0,0.02420656]
[1771198186054,1.03421896,68700.0,68684.0,0.02420656]
[1771198186228,1.05802847,68700.0,68684.0,0.02420656]
[1771198187009,0.83397759,68700.0,68684.0,0.02420656]
[1771198187189,0.22405088,68698.0,68684.0,0.02420656]
[1771198188290,0.20024137,68697.0,68682.0,0.312697]
[1771198188463,0.02380951,68694.0,68682.0,0.312697]
[1771198188690,0.22405088,68694.0,68682.0,0.312697]
[1771198190901,0.22405088,68694.0,68684.0,0.0002]
[1771198193084,0.20024137,68694.0,68684.0,0.0002]
[1771198193279,0.20024137,68692.0,68684.0,0.0002]
[1771198193426,0.22405088,68692.0,68684.0,0.0002]
[1771198198223,0.20024137,68696.0,68684.0,0.0002]
[1771198198430,0.22405088,68696.0,68684.0,0.0002]
[1771198200311,0.0004,68694.0,68684.0,0.0002]
[1771198200718,0.0004,68701.0,68689.0,0.18933318]
[1771198200914,0.09324,68715.0,68684.0,0.50944809]
[1771198200915,0.09324,68715.0,68691.0,0.02420656]
[1771198201167,0.000537,68708.0,68700.0,0.02420656]
[1771198204087,0.3268,68712.0,68700.0,0.02420656]
[1771198204404,0.3268,68712.0,68702.0,0.18933318]
[1771198204604,0.3268,68712.0,68704.0,0.02420656]
[1771198204982,0.3268,68712.0,68698.0,0.02420656]
[1771198205178,0.29348137,68715.0,68698.0,0.02420656]
[1771198205375,0.09324,68715.0,68701.0,0.02420656]
[1771198205785,0.0934202,68715.0,68701.0,0.02420656]
[1771198207977,0.0934202,68715.0,68702.0,0.18933318]
[1771198208145,0.0934202,68715.0,68703.0,0.18933318]
[1771198208352,0.01140354,68713.0,68704.0,0.18933318]
[1771198208549,0.01140354,68713.0,68705.0,0.02420656]
[1771198208814,0.0001769,68725.0,68701.0,0.18933318]
[1771198209054,0.11519674,68740.0,68700.0,0.50924809]
[1771198209055,0.20024137,68747.0,68700.0,0.50924809]
[1771198209056,0.03409557,68754.0,68714.0,0.29106081]
[1771198209351,0.03409557,68754.0,68730.0,0.02420656]
[1771198209352,0.50924809,68740.0,68730.0,0.02420656]
[1771198209956,0.50924809,68740.0,68725.0,0.13128]
[1771198209957,0.50924809,68740.0,68722.0,0.31352]
[1771198209958,0.02380951,68736.0,68722.0,0.31352]
[1771198210165,1.01849618,68740.0,68719.0,0.02420656]
[1771198210166,0.70948946,68732.0,68719.0,0.02420656]
[1771198210363,0.70948946,68732.0,68700.0,0.50924809]
[1771198210364,0.02380951,68728.0,68710.0,0.02420656]
[1771198210487,0.50924809,68720.0,68710.0,0.02420656]
[1771198210690,0.20024137,68724.0,68710.0,0.02431856]
[1771198210918,0.50924809,68730.0,68710.0,0.02431856]
[1771198211113,0.02380951,68727.0,68710.0,0.02431856]
[1771198211314,0.50924809,68730.0,68710.0,0.02431856]
[1771198211315,0.22405088,68725.0,68710.0,0.02431856]
[1771198211526,0.50924809,68730.0,68710.0,0.02431856]
[1771198211729,0.50924809,68730.0,68713.0,0.02420656]
[1771198211932,0.327,68731.0,68712.0,0.02420656]
[1771198212137,0.327,68731.0,68715.0,0.18933318]
[1771198212358,0.327,68731.0,68716.0,0.02420656]
[1771198212562,4.36e-05,68732.0,68718.0,0.02420656]
[1771198212768,4.36e-05,68732.0,68721.0,0.18933318]
[1771198212971,0.32712,68742.0,68717.0,0.313512]
[1771198212972,0.32712,68742.0,68718.0,0.18933318]
[1771198213186,0.32712,68742.0,68722.0,0.02420656]
[1771198213383,0.32712,68742.0,68723.0,0.02420656]
[1771198213586,0.32712,68742.0,68723.0,0.19571124]
[1771198213801,0.32712,68742.0,68720.0,0.57224464]
[1771198213802,0.32712,68742.0,68724.0,0.21896386]
[1771198214000,0.32712,68742.0,68725.0,0.02325262]
[1771198214174,0.32696108,68742.0,68725.0,0.02325262]
[1771198214358,0.32696108,68742.0,68726.0,0.02325262]
[1771198215432,0.02262535,68751.0,68728.0,0.19571124]
[1771198215620,0.19325606,68748.0,68729.0,0.02325262]
[1771198215773,0.19325606,68746.0,68727.0,0.31344]
[1771198215973,0.0004,68732.0,68727.0,0.31344]
[1771198216181,0.32696,68751.0,68727.0,0.31344]
[1771198216405,0.0002791,68771.0,68727.0,0.31344]
[1771198216406,0.19325606,68770.0,68744.0,0.19571124]
[1771198216568,0.32916727,68785.0,68777.0,0.23333949]
[1771198216767,0.00118416,68781.0,68777.0,0.22549494]
[1771198217028,0.32916727,68785.0,68763.0,0.02440791]
[1771198217029,0.19444022,68785.0,68763.0,0.02440791]
[1771198217228,0.0002791,68787.0,68756.0,0.02440791]
[1771198217229,0.00118416,68778.0,68756.0,0.02440791]
[1771198217424,0.19325606,68775.0,68756.0,0.02440791]
[1771198217631,0.19396349,68774.0,68756.0,0.02440791]
[1771198218655,0.00042793,68775.0,68758.0,0.02456682]
[1771198219103,0.00042793,68775.0,68758.0,0.19571124]
[1771198219305,0.3271591,68787.0,68764.0,0.02456682]
[1771198219306,0.0002791,68787.0,68764.0,0.02456682]